fUSD/lending_fUSD_20250511
["ID","MTS","AMOUNT","RATE_DAILY","PERIOD"]
[360762595,1746987308779,-500.0,0.00014783,2]
[360762596,1746987308806,-500.0,0.00014783,2]
[360762597,1746987308835,-500.0,0.00014783,2]
[360762598,1746987308863,-500.0,0.00014783,2]
[360762599,1746987308890,-500.0,0.00014783,2]
[360762600,1746987308919,-500.0,0.00014783,2]
[360762601,1746987308948,-440.72500759,0.00014783,2]
[360762602,1746987308979,-500.0,0.00014783,2]
[360762603,1746987309007,-500.0,0.00014783,2]
[360762604,1746987309039,-500.0,0.00014783,2]
[360762605,1746987309069,-500.0,0.00014783,2]
[360762606,1746987309098,-500.0,0.00014783,2]
[360762607,1746987309127,-500.0,0.00014783,2]
[360762608,1746987309158,-500.0,0.00014783,2]
[360762609,1746987309191,-500.0,0.00014783,2]
[360762610,1746987309223,-500.0,0.00014783,2]
[360762611,1746987309254,-500.0,0.00014783,2]
[360762612,1746987309285,-500.0,0.00014783,2]
[360762613,1746987309315,-500.0,0.00014783,2]
[360762614,1746987309346,-500.0,0.00014783,2]
[360762615,1746987309379,-500.0,0.00014783,2]
[360762616,1746987309411,-500.0,0.00014783,2]
[360762617,1746987309441,-500.0,0.00014783,2]
[360762618,1746987309472,-500.0,0.00014783,2]
[360762619,1746987309503,-500.0,0.00014783,2]
[360762620,1746987309536,-500.0,0.00014783,2]
[360762621,1746987309567,-500.0,0.00014783,2]
[360762622,1746987309600,-500.0,0.00014783,2]
[360762623,1746987309632,-500.0,0.00014783,2]
[360762624,1746987309662,-500.0,0.00014783,2]
[360762625,1746987309693,-500.0,0.00014783,2]
[360762626,1746987309723,-500.0,0.00014783,2]
[360762627,1746987309752,-500.0,0.00014783,2]
[360762628,1746987309782,-500.0,0.00014783,2]
[360762629,1746987309811,-500.0,0.00014783,2]
[360762630,1746987309839,-500.0,0.00014783,2]
[360762631,1746987309869,-500.0,0.00014783,2]
[360762632,1746987309892,-230.33552445,0.00014783,2]
[360762633,1746987309925,-1997.7201926,0.00014783,2]
[360762634,1746987309957,-1997.7201926,0.00014783,2]
[360762635,1746987309986,-1997.7201926,0.00014783,2]
[360762636,1746987310016,-1997.7201926,0.00014783,2]
[360762637,1746987310046,-1997.7201926,0.00014783,2]
[360762638,1746987310074,-1997.7201926,0.00014783,2]
[360762639,1746987310113,-1997.7201926,0.00014783,2]
[360762640,1746987310147,-1997.7201926,0.00014783,2]
[360762641,1746987310179,-1997.7201926,0.00014783,2]
[360762642,1746987310213,-1997.7201926,0.00014783,2]
[360762643,1746987310248,-1997.7201926,0.00014783,2]
[360762644,1746987310279,-1997.7201926,0.00014783,2]
[360762645,1746987310313,-1997.7201926,0.00014783,2]
[360762646,1746987310344,-1997.7201926,0.00014783,2]
[360762647,1746987310374,-1997.7201926,0.00014783,2]
[360762648,1746987310406,-1997.7201926,0.00014783,2]
[360762649,1746987310437,-1997.7201926,0.00014783,2]
[360762650,1746987310468,-1997.7201926,0.00014783,2]
[360762651,1746987310498,-1997.7201926,0.00014783,2]
[360762652,1746987310528,-1997.7201926,0.00014783,2]
[360762653,1746987310557,-1997.7201926,0.00014783,2]
[360762654,1746987310587,-1997.7201926,0.00014783,2]
[360762655,1746987310618,-1997.7201926,0.00014783,2]
[360762656,1746987310648,-1997.7201926,0.00014783,2]
[360762657,1746987310678,-1997.7201926,0.00014783,2]
[360762658,1746987310706,-1997.7201926,0.00014783,2]
[360762659,1746987310738,-1997.7201926,0.00014783,2]
[360762660,1746987310768,-1997.7201926,0.00014783,2]
[360762661,1746987310797,-1997.7201926,0.00014783,2]
[360762662,1746987310827,-1997.7201926,0.00014783,2]
[360762663,1746987310857,-1997.7201926,0.00014783,2]
[360762664,1746987310887,-1997.7201926,0.00014783,2]
[360762665,1746987311158,-186.19459723,0.00014783,2]
[360762666,1746987311187,-10491.11305325,0.00014785,2]
[360762667,1746987311210,-30000.0,0.00014785,2]
[360762668,1746987311234,-176.62389244,0.0001485,12]
[360762669,1746987311258,-1668.82613595,0.00014868,2]
[360762670,1746987311281,-1668.82613595,0.00014873,2]
[360762671,1746987311305,-1668.82613595,0.00014877,2]
[360762672,1746987311327,-2000.0,0.0001488,2]
[360762673,1746987311349,-200.0,0.0001488,2]
[360762674,1746987311377,-1668.82613595,0.00014882,2]
[360762675,1746987311402,-1668.82613595,0.00014886,2]
[360762676,1746987311424,-172.36073058,0.00014889,2]
[360762677,1746987311449,-1668.82613595,0.00014891,2]
[360762678,1746987311472,-1668.82613595,0.00014895,2]
[360762679,1746987311494,-161.85224119,0.000149,2]
[360762680,1746987311519,-1668.82613595,0.000149,2]
[360762681,1746987311541,-583.51681948,0.000149,2]
[360762682,1746987311564,-1148.17338244,0.000149,2]
[360762683,1746987311587,-325.1688111,0.00014924,2]
[360762684,1746987311610,-500.0,0.00014973,2]
[360762685,1746987311633,-500.0,0.00014973,2]
[360762686,1746987311656,-62634.76191295,0.00014989,2]
[360762687,1746987475635,-4000.0,0.00014317,2]
[360762688,1746987475658,-300.0,0.00014781,2]
[360762689,1746987475687,-500.0,0.00014782,2]
[360762690,1746987475714,-500.0,0.00014782,2]
[360762691,1746987475742,-500.0,0.00014782,2]
[360762692,1746987475769,-500.0,0.00014782,2]
[360762693,1746987475795,-500.0,0.00014782,2]
[360762694,1746987475822,-500.0,0.00014782,2]
[360762695,1746987475848,-500.0,0.00014782,2]
[360762696,1746987475877,-500.0,0.00014782,2]
[360762697,1746987475902,-500.0,0.00014782,2]
[360762698,1746987475927,-500.0,0.00014782,2]
[360762699,1746987475953,-500.0,0.00014782,2]
[360762700,1746987475978,-500.0,0.00014782,2]
[360762701,1746987476004,-500.0,0.00014782,2]
[360762702,1746987476029,-500.0,0.00014782,2]
[360762703,1746987476054,-500.0,0.00014782,2]
[360762704,1746987476080,-500.0,0.00014782,2]
[360762705,1746987476107,-622.870292,0.00014782,2]
[360762706,1746987476134,-500.0,0.00014782,2]
[360762707,1746987476160,-500.0,0.00014782,2]
[360762708,1746987476189,-500.0,0.00014782,2]
[360762709,1746987476221,-500.0,0.00014782,2]
[360762710,1746987476249,-500.0,0.00014782,2]
[360762711,1746987476276,-500.0,0.00014782,2]
[360762712,1746987476304,-500.0,0.00014782,2]
[360762713,1746987476334,-500.0,0.00014782,2]
[360762714,1746987476365,-500.0,0.00014782,2]
[360762715,1746987476394,-500.0,0.00014782,2]
[360762716,1746987476435,-500.0,0.00014782,2]
[360762717,1746987476465,-500.0,0.00014782,2]
[360762718,1746987476493,-500.0,0.00014782,2]
[360762719,1746987476523,-500.0,0.00014782,2]
[360762720,1746987476552,-500.0,0.00014782,2]
[360762721,1746987476580,-500.0,0.00014782,2]
[360762722,1746987476610,-500.0,0.00014782,2]
[360762723,1746987476637,-500.0,0.00014782,2]
[360762724,1746987476665,-500.0,0.00014782,2]
[360762725,1746987476692,-500.0,0.00014782,2]
[360762726,1746987476719,-500.0,0.00014782,2]
[360762727,1746987476745,-500.0,0.00014782,2]
[360762728,1746987476771,-500.0,0.00014782,2]
[360762729,1746987476794,-338.9732574,0.00014782,2]
[360762730,1746987476816,-262.01599656,0.00014782,2]
[360762731,1746987476844,-500.0,0.00014782,2]
[360762732,1746987476875,-500.0,0.00014782,2]
[360762733,1746987476902,-500.0,0.00014782,2]
[360762734,1746987476930,-500.0,0.00014782,2]
[360762735,1746987476958,-497.94817334,0.00014782,2]
[360762736,1746987476984,-500.0,0.00014782,2]
[360762737,1746987477011,-500.0,0.00014782,2]
[360762738,1746987477038,-500.0,0.00014782,2]
[360762739,1746987477066,-500.0,0.00014782,2]
[360762740,1746987477088,-300.0,0.00014782,2]
[360762741,1746987477112,-191.75367724,0.000149,2]
[360762742,1746987477135,-260.1350489,0.00014924,2]
[360762743,1746987477159,-580.86938389,0.00014973,2]
[360762744,1746987477184,-500.0,0.00014988,2]
[360762745,1746987477212,-500.0,0.00014988,2]
[360762746,1746987477238,-500.0,0.00014988,2]
[360762747,1746987477265,-500.0,0.00014988,2]
[360762748,1746987477291,-500.0,0.00014988,2]
[360762749,1746987477501,-500.0,0.00014988,2]
[360762750,1746987477542,-500.0,0.00014988,2]
[360762751,1746987477566,-500.0,0.00014988,2]
[360762752,1746987477590,-500.0,0.00014988,2]
[360762753,1746987477615,-500.0,0.00014988,2]
[360762754,1746987477639,-500.0,0.00014988,2]
[360762755,1746987477661,-470.78475356,0.00014988,2]
[360762756,1746987477685,-500.0,0.00014988,2]
[360762757,1746987477708,-500.0,0.00014988,2]
[360762758,1746987477732,-500.0,0.00014988,2]
[360762759,1746987477755,-500.0,0.00014988,2]
[360762760,1746987477778,-500.0,0.00014988,2]
[360762761,1746987477802,-500.0,0.00014988,2]
[360762762,1746987477826,-500.0,0.00014988,2]
[360762763,1746987477850,-500.0,0.00014988,2]
[360762764,1746987477874,-500.0,0.00014988,2]
[360762765,1746987477897,-500.0,0.00014988,2]
[360762766,1746987477920,-500.0,0.00014988,2]
[360762767,1746987477943,-500.0,0.00014988,2]
[360762768,1746987477966,-200.0,0.00014988,2]
[360762769,1746987477987,-1094.6291788,0.00014989,2]
[360762770,1746987478010,-593.0628654,0.00014989,2]
[360762771,1746987478033,-176702.0628646,0.00014989,2]
[360762772,1746987478058,-7203.9601581,0.00014989,2]
[360762773,1746987478082,-151.0,0.00014991,2]
[360762774,1746987478105,-151.0,0.00014991,2]
[360762775,1746987478128,-668.65185757,0.00014991,2]
[360762776,1746987478151,-155.0,0.00014991,2]
[360762777,1746987478174,-207.4,0.00014991,2]
[360762778,1746987478201,-929.0,0.00015,2]
[360762779,1746987478224,-879.0,0.00015,2]
[360762780,1746987478248,-627.0,0.00015,2]
[360762781,1746987478271,-798.0,0.00015,2]
[360762782,1746987478292,-1143.0,0.00015,2]
[360762783,1746987478314,-2123.805,0.00015,2]
[360762784,1746987478335,-358.592,0.00015,2]
[360762785,1746987478356,-583.0,0.00015,2]
[360762786,1746987478379,-423.293,0.00015,2]
[360762787,1746987478403,-66750.19249264,0.00015,2]
[360762788,1746987549598,-500.0,0.00014899,2]
[360762789,1746987549628,-500.0,0.00014899,2]
[360762790,1746987549656,-500.0,0.00014899,2]
[360762791,1746987549684,-500.0,0.00014899,2]
[360762792,1746987549712,-362.08184654,0.00014899,2]
[360762793,1746987549734,-7261.3277,0.000149,2]
[360762794,1746987549756,-650.23882842,0.000149,2]
[360762795,1746987549777,-7187.41186224,0.000149,2]
[360762796,1746987549800,-15593.38213713,0.000149,2]
[360762797,1746987549823,-208.1080391,0.00014924,2]
[360762798,1746987549847,-150.0,0.00014929,2]
[360762799,1746987549870,-380.3026686,0.00014989,2]
[360762800,1746987549893,-1650.5217855,0.00014989,2]
[360762801,1746987549918,-500.0,0.00014999,2]
[360762802,1746987549942,-500.0,0.00014999,2]
[360762803,1746987549965,-500.0,0.00014999,2]
[360762804,1746987549988,-500.0,0.00014999,2]
[360762805,1746987550011,-500.0,0.00014999,2]
[360762806,1746987550034,-500.0,0.00014999,2]
[360762807,1746987550057,-500.0,0.00014999,2]
[360762808,1746987550079,-500.0,0.00014999,2]
[360762809,1746987550102,-500.0,0.00014999,2]
[360762810,1746987550125,-500.0,0.00014999,2]
[360762811,1746987550148,-500.0,0.00014999,2]
[360762812,1746987550171,-169.54932749,0.00014999,2]
[360762813,1746987550194,-500.0,0.00014999,2]
[360762814,1746987550220,-500.0,0.00014999,2]
[360762815,1746987550243,-150.0,0.00014999,2]
[360762816,1746987550267,-1204.07580498,0.00014999,2]
[360762817,1746987603892,864.28,0.00013699,2]
[360762818,1746987661445,415.03,0.00014234,2]
[360762819,1746987689509,176.22081214,0.00014163,2]
[360762820,1746987801725,1000.0,0.00014171,2]
[360762821,1746987812915,820.95,0.00014154,2]
[360762822,1746987828416,200.0,0.00014153,2]
[360762823,1746987843415,2518.9,0.00014153,2]
[360762824,1746987920388,4004.61918786,9e-05,2]
[360762825,1746987920419,6043.37439596,9e-05,2]
[360762826,1746987928581,2152.7879657,0.00011,2]
[360762827,1746987955639,503.03868951,6.94e-05,2]
[360762828,1746987967460,993.0133227,8e-05,2]
[360762832,1746988014507,159.43,0.00014145,2]
[360762838,1746988024946,2540.09,0.00014163,2]
[360762840,1746988078426,18011.77883679,0.0001,2]
[360762842,1746988099526,805.34125131,0.000135,2]
[360762843,1746988099702,297.6514902,0.000125,2]
[360762844,1746988107147,1870.65898453,0.0001,2]
[360762845,1746988108874,379.33829082,7.888e-05,2]
[360762846,1746988116094,216.8536897,0.0001,2]
[360762853,1746988127081,11211.34166146,0.00013368,2]
[360762854,1746988127106,8099.25692842,0.00013368,2]
[360762855,1746988135439,221.92,0.00011255,2]
[360762866,1746988177133,200.0,0.00014039,2]
[360762869,1746988198226,1109.34397022,0.00014039,2]
[360762870,1746988198250,526.75602978,0.00014039,2]
[360762871,1746988228448,9473.24397022,0.00014045,2]
[360762872,1746988228476,9419.30602978,0.00014045,2]
[360762927,1746988232107,-1416.27849929,0.0001439,2]
[360762929,1746988232116,-163.92,0.00014549,2]
[360762931,1746988232126,-771.4616337,0.00014586,2]
[360762933,1746988232135,-250.0,0.00014714,2]
[360762935,1746988232145,-2000.0,0.0001488,2]
[360762936,1746988232154,-200.0,0.0001488,2]
[360762937,1746988232166,-1200.0,0.00014898,2]
[360762938,1746988232175,-95.49185034,0.00014899,2]
[360762939,1746988232186,-54.50814966,0.00014899,2]
[360762940,1746988232194,-14334.6158,0.000149,2]
[360762941,1746988232204,-682.7713,0.000149,2]
[360762942,1746988232215,-11158.0119,0.000149,2]
[360762943,1746988232225,-1000.0,0.000149,2]
[360762944,1746988232236,-497.28791242,0.000149,2]
[360762945,1746988232247,-583.51681948,0.000149,2]
[360762946,1746988232258,-6090.40752816,0.000149,2]
[360762947,1746988232268,-278.8679606,0.000149,2]
[360762948,1746988232277,-5253.29521034,0.000149,2]
[360762949,1746988232286,-4076.47086639,0.000149,2]
[360762950,1746988232295,-274.7153863,0.00014924,2]
[360762951,1746988232306,-247.93036543,0.00014973,2]
[360762952,1746988232321,-207.4,0.0001498,2]
[360762953,1746988232330,-500.0,0.00014987,2]
[360762954,1746988232339,-500.0,0.00014987,2]
[360762955,1746988232348,-500.0,0.00014987,2]
[360762956,1746988232358,-500.0,0.00014987,2]
[360762957,1746988232368,-500.0,0.00014987,2]
[360762958,1746988232377,-168.68452925,0.00014987,2]
[360762959,1746988232386,-500.0,0.00014987,2]
[360762960,1746988232396,-500.0,0.00014987,2]
[360762961,1746988232405,-500.0,0.00014987,2]
[360762962,1746988232416,-500.0,0.00014987,2]
[360762963,1746988232425,-500.0,0.00014987,2]
[360762964,1746988232435,-500.0,0.00014987,2]
[360762965,1746988232447,-500.0,0.00014987,2]
[360762966,1746988232456,-500.0,0.00014987,2]
[360762967,1746988232465,-500.0,0.00014987,2]
[360762968,1746988232476,-500.0,0.00014987,2]
[360762969,1746988232487,-686.2563878,0.00014988,2]
[360762970,1746988232496,-3757.9640987,0.00014988,2]
[360762971,1746988232505,-178.5281469,0.00014988,2]
[360762972,1746988232515,-78310.349362,0.00014988,2]
[360762973,1746988232525,-1409.08273785,0.0001499,2]
[360762974,1746988232534,-7728.71331416,0.0001499,2]
[360762975,1746988232543,-151.0,0.00014991,2]
[360762976,1746988232553,-155.0,0.00014991,2]
[360762977,1746988232566,-668.65185757,0.00014991,2]
[360762978,1746988232575,-3112.44419502,0.00014999,2]
[360762979,1746988232585,-221.834,0.00014999,2]
[360762980,1746988232594,-300.0,0.00014999,2]
[360762981,1746988232604,-154.0,0.00015,2]
[360762982,1746988232613,-4026.0,0.00015,2]
[360762983,1746988232623,-261.56451564,0.00015,2]
[360762984,1746988232632,-35657.37376767,0.00015,2]
[360762985,1746988234960,-1.77620427,0.00015,2]
[360762986,1746988235726,-720.63172157,0.00015,2]
[360762987,1746988235738,-609.88347487,0.00015,2]
[360762988,1746988235748,-350.0,0.00015,2]
[360762989,1746988235807,-800.0,0.00015,2]
[360762990,1746988235822,-627.68208494,0.00015,2]
[360762991,1746988235859,-16911.94313974,0.00015,2]
[360762992,1746988235910,-762.17542217,0.00015,2]
[360762993,1746988235922,-32937.13846479,0.00015,2]
[360762994,1746988235962,-6102.2199957,0.00015,2]
[360763024,1746988239393,-171.1231244,0.0001499,2]
[360763025,1746988239403,-171.1231244,0.0001499,2]
[360763026,1746988239412,-929.0,0.00015,2]
[360763027,1746988239422,-678282.94053865,0.00015,2]
[360763028,1746988239455,-1711.199059,0.00015,2]
[360763031,1746988241379,-2228.90697519,0.00015,2]
[360763032,1746988241393,-17335.38929171,0.00015,2]
[360763033,1746988241434,-1000.0,0.00015,2]
[360763034,1746988241496,-4032.71134052,0.00015,2]
[360763035,1746988241531,-257987.7392752,0.00015,2]
[360763036,1746988241542,-28748.10029198,0.00015,2]
[360763037,1746988241784,-31887.37734997,0.00015,2]
[360763038,1746988241829,-30960.55143175,0.00015,2]
[360763039,1746988241840,-1310.04258333,0.00015,2]
[360763040,1746988241851,-1010.01267846,0.00015,2]
[360763044,1746988242930,-3996.99999943,0.00015,2]
[360763045,1746988242941,-317446.10984522,0.00015,2]
[360763048,1746988243069,-620.0,0.00015,2]
[360763050,1746988243081,-22565.521242,0.00015,2]
[360763057,1746988243140,-279076.54768174,0.00015,2]
[360763060,1746988243152,-242373.60467088,0.00015,2]
[360763066,1746988243206,-576.36498999,0.00015,2]
[360763068,1746988243218,-2618.15682664,0.00015,2]
[360763076,1746988243282,-800.82437286,0.00015,2]
[360763135,1746988245630,-879.0,0.00015,2]
[360763136,1746988245816,-7275.704015,0.00015,2]
[360763199,1746988246538,-15130.10215781,0.00015,2]
[360763200,1746988246947,-1869.57692506,0.00015,2]
[360763201,1746988246958,-1862.08617678,0.00015,2]
[360763209,1746988370782,-181.6799936,0.00014241,2]
[360763210,1746988386863,-68.3200064,0.00014241,2]
[360763211,1746988440703,580.69397022,0.00014038,2]
[360763212,1746988440722,2462.11602978,0.00014038,2]
[360763213,1746988508595,952.93,0.00014009,2]
[360763214,1746988548818,6584.95397022,0.00013998,2]
[360763215,1746988548852,10000.0,0.00013998,2]
[360763216,1746988548887,7315.04602978,0.00013998,2]
[360763217,1746988644991,2037.94,0.00014012,2]
[360763218,1746988709450,647.01397022,0.00013699,2]
[360763219,1746988709474,174.04602978,0.00013699,2]
[360763220,1746988908080,4548.82,0.00014045,2]
[360763221,1746988908311,4548.82,0.00014048,2]
[360763222,1746988908559,728.31397022,0.00014052,2]
[360763223,1746988908584,3820.50602978,0.00014052,2]
[360763224,1746988908774,4548.82,0.00014056,2]
[360763225,1746988909131,1630.67397022,0.0001406,2]
[360763226,1746988909153,2918.14602978,0.0001406,2]
[360763227,1746988909374,4548.82,0.00014063,2]
[360763228,1746988909478,2533.03397022,0.00014067,2]
[360763229,1746988909500,2015.78602978,0.00014067,2]
[360763230,1746988909725,4548.82,0.00014071,2]
[360763231,1746988909853,3435.39397022,0.00014074,2]
[360763232,1746988909875,1113.42602978,0.00014074,2]
[360763233,1746988910688,4548.82,0.00014078,2]
[360763234,1746988910847,4337.75397022,0.00014082,2]
[360763235,1746988910868,211.06602978,0.00014082,2]
[360763236,1746988911026,4548.82,0.00014085,2]
[360763237,1746988911583,250.0,0.00014089,2]
[360763238,1746988911604,4298.82,0.00014089,2]
[360763239,1746988911763,941.29397022,0.00014093,2]
[360763240,1746988911784,3607.52602978,0.00014093,2]
[360763241,1746988911906,4548.82,0.00014097,2]
[360763242,1746988912030,250.0,0.000141,2]
[360763243,1746988912052,1843.65397022,0.000141,2]
[360763244,1746988912073,2455.16602978,0.000141,2]
[360763245,1746988912174,4548.82,0.00014104,2]
[360763246,1746988912293,2996.01397022,0.00014108,2]
[360763247,1746988912314,1552.80602978,0.00014108,2]
[360763248,1746988912432,4548.82,0.00014111,2]
[360763249,1746988912525,3898.37397022,0.00014115,2]
[360763250,1746988912546,650.44602978,0.00014115,2]
[360763251,1746988926010,1000.0,0.00013997,2]
[360763252,1746988978763,-699.42,0.000178,14]
[360763253,1746988999301,500.0,0.00027469,120]
[360763254,1746989132435,1270.04,0.00013946,2]
[360763255,1746989276186,2731.88,0.00012005,2]
[360763260,1746989319449,150.0,0.00014202,2]
[360763261,1746989321793,157.33,0.00013932,2]
[360763345,1746989399763,200.0,0.0001393,2]
[360763352,1746989431785,-2731.88,0.00014269,2]
[360763353,1746989431796,-250.0,0.00014535,2]
[360763354,1746989431806,-1322.0,0.000147,2]
[360763355,1746989431818,-300.0,0.00014799,2]
[360763356,1746989431828,-6006.85798821,0.000148,2]
[360763357,1746989431839,-6006.85798813,0.00014811,2]
[360763358,1746989431848,-6006.85798813,0.00014822,2]
[360763359,1746989431859,-6006.85798813,0.00014833,2]
[360763360,1746989431868,-6006.85798813,0.00014844,2]
[360763361,1746989431878,-6006.85798813,0.00014856,2]
[360763362,1746989431888,-6006.85798813,0.00014867,2]
[360763363,1746989431899,-1200.0,0.00014879,2]
[360763364,1746989431908,-622.94321907,0.00014879,2]
[360763365,1746989431918,-2000.0,0.0001488,2]
[360763366,1746989431928,-200.0,0.0001488,2]
[360763367,1746989431937,-207.4,0.0001488,2]
[360763368,1746989431947,-150.0,0.00014888,2]
[360763369,1746989431956,-500.0,0.00014888,2]
[360763370,1746989431966,-500.0,0.00014888,2]
[360763371,1746989431975,-189.32567517,0.00014888,2]
[360763372,1746989431985,-500.0,0.00014888,2]
[360763373,1746989431995,-500.0,0.00014888,2]
[360763374,1746989432004,-500.0,0.00014888,2]
[360763375,1746989432014,-500.0,0.00014888,2]
[360763376,1746989432023,-500.0,0.00014888,2]
[360763377,1746989432032,-500.0,0.00014888,2]
[360763378,1746989432042,-615.87177111,0.00014888,2]
[360763379,1746989432052,-500.0,0.00014888,2]
[360763380,1746989432062,-500.0,0.00014888,2]
[360763381,1746989432072,-400.0,0.00014888,2]
[360763382,1746989432082,-1000.0,0.00014889,2]
[360763383,1746989432093,-500.0,0.00014889,2]
[360763384,1746989432102,-448.5345,0.00014889,2]
[360763385,1746989432111,-304.41613422,0.00014891,2]
[360763386,1746989432181,-1043.81180349,0.00014891,2]
[360763387,1746989432194,-613.34909844,0.00014891,2]
[360763388,1746989432235,-2687.04656158,0.00014891,2]
[360763389,1746989432246,-4648.62359769,0.00014892,2]
[360763390,1746989432255,-4648.62359769,0.00014893,2]
[360763391,1746989432265,-4648.62359769,0.00014894,2]
[360763392,1746989432275,-4648.62359769,0.00014895,2]
[360763393,1746989432285,-4648.62359769,0.00014896,2]
[360763394,1746989432294,-4648.62359769,0.00014897,2]
[360763395,1746989432303,-591.03485227,0.00014898,2]
[360763396,1746989432349,-4057.58874542,0.00014898,2]
[360763397,1746989432358,-4648.62359769,0.00014899,2]
[360763398,1746989432368,-5184.4212,0.000149,2]
[360763399,1746989432379,-51873.4273,0.000149,2]
[360763400,1746989432390,-179.9926,0.000149,2]
[360763401,1746989432400,-1418.2818,0.000149,2]
[360763402,1746989432410,-488.8167467,0.000149,2]
[360763403,1746989432420,-221.834,0.000149,2]
[360763404,1746989432430,-4648.62359769,0.000149,2]
[360763405,1746989432439,-226.24920336,0.000149,2]
[360763406,1746989432448,-177.84374207,0.000149,2]
[360763407,1746989432457,-198.65140557,0.000149,2]
[360763408,1746989432467,-3551.14,0.00014904,2]
[360763409,1746989432476,-219.772309,0.00014924,2]
[360763410,1746989432485,-500.27962824,0.00014973,2]
[360763411,1746989432495,-500.88830568,0.00014973,2]
[360763412,1746989432504,-150.0,0.00014976,2]
[360763413,1746989432514,-164.09,0.00014979,2]
[360763414,1746989432539,-164.09,0.0001498,2]
[360763415,1746989432549,-151.0,0.0001498,2]
[360763416,1746989432559,-157.39136508,0.0001498,2]
[360763417,1746989432568,-668.65185757,0.0001498,2]
[360763418,1746989432579,-3047.5750183,0.0001498,2]
[360763419,1746989432593,-1222.5849817,0.0001498,2]
[360763420,1746989432603,-164.09,0.0001498,2]
[360763421,1746989432612,-164.09,0.0001498,2]
[360763422,1746989432622,-164.09,0.0001498,2]
[360763423,1746989432631,-5812.44501826,0.00014989,2]
[360763424,1746989432642,-2237.87976701,0.00014989,2]
[360763425,1746989432655,-56070.18927233,0.00014989,2]
[360763426,1746989432665,-25339.27602063,0.0001499,2]
[360763427,1746989432674,-171.1231244,0.0001499,2]
[360763428,1746989432684,-12854.4550519,0.0001499,2]
[360763429,1746989432732,-356.39,0.0001499,2]
[360763436,1746989438044,-4476.477441,0.00014878,2]
[360763443,1746989440094,-1530.38054713,0.00014878,2]
[360763444,1746989440109,-3439.6890028,0.00014889,2]
[360763445,1746989440536,-2567.16898533,0.00014889,2]
[360763446,1746989440546,-2910.64481461,0.0001499,2]
[360763447,1746989441026,-9559.96636083,0.0001499,2]
[360763448,1746989441084,-42251.92479058,0.0001499,2]
[360763449,1746989441099,-251.405,0.0001499,2]
[360763450,1746989441248,-8934.52663686,0.0001499,2]
[360763451,1746989441273,-25298.82237681,0.0001499,2]
[360763452,1746989441285,-3869.866,0.0001499,2]
[360763459,1746989442790,-112123.35804859,0.0001499,2]
[360763460,1746989442802,-310.04966336,0.0001499,2]
[360763462,1746989442844,-2039.44235077,0.0001499,2]
[360763463,1746989442950,-25555.7010232,0.0001499,2]
[360763464,1746989443006,-6141.53740692,0.0001499,2]
[360763473,1746989445813,-2006.10912357,0.000149,2]
[360763474,1746989445829,-611.814996,0.000149,2]
[360763475,1746989445840,-1517.0960347,0.000149,2]
[360763476,1746989445855,-600.268008,0.000149,2]
[360763477,1746989445867,-599.76882546,0.000149,2]
[360763478,1746989445878,-589.1344272,0.000149,2]
[360763479,1746989445890,-82.6665732,0.000149,2]
[360763480,1746989445902,-525.2200556,0.0001499,2]
[360763481,1746989446047,-2401.0585068,0.0001499,2]
[360763482,1746989446079,-1649.344377,0.0001499,2]
[360763488,1746989603173,150.0,0.00014144,2]
[360763489,1746989712307,1000.0,0.00013699,2]
[360763490,1746989789822,502.63,0.000176,14]